[Event "Berliner Meisterschaft 2023"]
[Site "Berlin"]
[Date "2023.04.15"]
[Round "8.2"]
[White "Glek, Igor"]
[Black "Bruedigam, Martin"]
[Result "1/2-1/2"]
[TimeControl "90 minutes / 40 moves + 30 minutes + 30 seconds"]
[WhiteTitle "GM"]
[BlackTitle "IM"]
[WhiteFideId "4100484"]
[BlackFideId "24608033"]
[WhiteElo "2443"]
[BlackElo "2378"]

1. e4 {[%clk 01:29:34]} {[%emt 00:01:25]} c5 {[%clk 01:30:52]} {[%emt
00:00:08]} 2. Nf3 {[%clk 01:29:54]} {[%emt 00:00:10]} d6 {[%clk 01:31:16]}
{[%emt 00:00:06]} 3. d4 {[%clk 01:29:27]} {[%emt 00:00:57]} cxd4 {[%clk
01:31:39]} {[%emt 00:00:07]} 4. Qxd4 {[%clk 01:24:37]} {[%emt 00:05:20]} Nc6
{[%clk 01:28:54]} {[%emt 00:03:15]} 5. Bb5 {[%clk 01:24:11]} {[%emt 00:00:56]}
Bd7 {[%clk 01:28:05]} {[%emt 00:01:19]} 6. Qd3 {[%clk 01:17:34]} {[%emt
00:07:07]} Nf6 {[%clk 01:23:45]} {[%emt 00:04:50]} 7. O-O {[%clk 01:14:55]}
{[%emt 00:03:09]} g6 {[%clk 01:17:37]} {[%emt 00:06:38]} 8. c4 {[%clk
01:12:12]} {[%emt 00:03:13]} Bg7 {[%clk 01:16:24]} {[%emt 00:01:42]} 9. Nc3
{[%clk 01:12:38]} {[%emt 00:00:05]} O-O {[%clk 01:15:29]} {[%emt 00:01:25]} 10.
Rd1 {[%clk 01:02:49]} {[%emt 00:10:19]} a6 {[%clk 01:10:35]} {[%emt 00:05:24]}
11. Bxc6 {[%clk 01:02:20]} {[%emt 00:00:58]} Bxc6 {[%clk 01:10:52]} {[%emt
00:00:13]} 12. Nd4 {[%clk 01:02:29]} {[%emt 00:00:21]} Rc8 {[%clk 01:03:26]}
{[%emt 00:07:56]} 13. c5 {[%clk 00:40:57]} {[%emt 00:22:02]} Bxe4 {[%clk
00:43:53]} {[%emt 00:20:02]} 14. Qe2 {[%clk 00:36:56]} {[%emt 00:04:31]} Bc6
{[%clk 00:41:23]} {[%emt 00:03:00]} 15. cxd6 {[%clk 00:37:01]} {[%emt
00:00:26]} exd6 {[%clk 00:41:41]} {[%emt 00:00:11]} 16. Bg5 {[%clk 00:29:23]}
{[%emt 00:08:07]} Re8 {[%clk 00:41:07]} {[%emt 00:01:04]} 17. Qd2 {[%clk
00:20:57]} {[%emt 00:08:56]} Qd7 {[%clk 00:36:57]} {[%emt 00:04:40]} 18. f3
{[%clk 00:17:38]} {[%emt 00:03:49]} b5 {[%clk 00:29:21]} {[%emt 00:08:06]} 19.
Bh6 {[%clk 00:14:29]} {[%emt 00:03:39]} Bb7 {[%clk 00:21:10]} {[%emt 00:08:42]}
20. a3 {[%clk 00:07:52]} {[%emt 00:07:07]} Bh8 {[%clk 00:20:21]} {[%emt
00:01:18]} 21. Nce2 {[%clk 00:05:56]} {[%emt 00:02:27]} Qc7 {[%clk 00:16:43]}
{[%emt 00:04:08]} 22. Ng3 {[%clk 00:04:55]} {[%emt 00:01:31]} Qb6 {[%clk
00:15:15]} {[%emt 00:01:58]} 23. Qf2 {[%clk 00:02:00]} {[%emt 00:03:24]} Rc4
{[%clk 00:14:08]} {[%emt 00:01:38]} 24. Nge2 {[%clk 00:01:53]} {[%emt
00:00:37]} Qc7 {[%clk 00:10:14]} {[%emt 00:04:24]} 25. Rd2 {[%clk 00:01:44]}
{[%emt 00:00:38]} Bg7 {[%clk 00:09:27]} {[%emt 00:01:17]} 26. Bxg7 {[%clk
00:02:07]} {[%emt 00:00:07]} Kxg7 {[%clk 00:09:53]} {[%emt 00:00:04]} 27. h4
{[%clk 00:01:25]} {[%emt 00:01:12]} Qe7 {[%clk 00:10:05]} {[%emt 00:00:18]} 28.
Ng3 {[%clk 00:01:37]} {[%emt 00:00:18]} Bc8 {[%clk 00:09:44]} {[%emt 00:00:51]}
29. Re2 {[%clk 00:01:17]} {[%emt 00:00:49]} Qc7 {[%clk 00:09:48]} {[%emt
00:00:27]} 30. Rxe8 {[%clk 00:01:30]} {[%emt 00:00:16]} Nxe8 {[%clk 00:10:13]}
{[%emt 00:00:05]} 31. Qd2 {[%clk 00:01:43]} {[%emt 00:00:17]} Qc5 {[%clk
00:05:09]} {[%emt 00:05:34]} 32. Rd1 {[%clk 00:01:29]} {[%emt 00:00:44]} Qe5
{[%clk 00:05:14]} {[%emt 00:00:25]} 33. Nf1 {[%clk 00:01:14]} {[%emt 00:00:45]}
Nf6 {[%clk 00:05:15]} {[%emt 00:00:29]} 34. b3 {[%clk 00:01:19]} {[%emt
00:00:26]} Rc7 {[%clk 00:05:23]} {[%emt 00:00:21]} 35. Re1 {[%clk 00:01:30]}
{[%emt 00:00:20]} Qc5 {[%clk 00:04:50]} {[%emt 00:01:04]} 36. Ne3 {[%clk
00:01:16]} {[%emt 00:00:44]} Qc3 {[%clk 00:03:21]} {[%emt 00:01:58]} 37. Rd1
{[%clk 00:01:06]} {[%emt 00:00:40]} Qxd2 {[%clk 00:03:17]} {[%emt 00:00:35]} 38.
Rxd2 {[%clk 00:01:35]} h5 {[%clk 00:03:10]} {[%emt 00:00:36]} 39. Kf2 {[%clk
00:01:55]} {[%emt 00:00:10]} Kf8 {[%clk 00:03:17]} {[%emt 00:00:24]} 40. Rc2
{[%clk 00:01:17]} {[%emt 00:01:07]} Rxc2+ {[%clk 00:03:21]} {[%emt 00:00:26]}
41. Ndxc2 {[%clk 00:01:28]} {[%emt 00:00:19]} Ke7 {[%clk 00:02:03]} {[%emt
00:01:48]} 42. Ke2 {[%clk 00:29:38]} {[%emt 00:02:19]} Be6 {[%clk 00:30:19]}
{[%emt 00:02:13]} 43. Nb4 {[%clk 00:20:52]} {[%emt 00:09:17]} Bxb3 {[%clk
00:23:11]} {[%emt 00:07:38]} 44. Nxa6 {[%clk 00:21:20]} {[%emt 00:00:02]} Nd5
{[%clk 00:22:57]} {[%emt 00:00:44]} 45. Nxd5+ {[%clk 00:20:30]} {[%emt
00:01:20]} Bxd5 {[%clk 00:23:21]} {[%emt 00:00:06]} 46. Ke3 {[%clk 00:20:58]}
{[%emt 00:00:02]} Bc4 {[%clk 00:22:36]} {[%emt 00:01:15]} 47. Nb4 {[%clk
00:20:27]} {[%emt 00:01:02]} Ke6 {[%clk 00:22:00]} {[%emt 00:01:05]} 48. Kd4
{[%clk 00:14:52]} {[%emt 00:06:05]} Bf1 {[%clk 00:17:54]} {[%emt 00:04:35]} 49.
Nd5 {[%clk 00:13:10]} {[%emt 00:02:13]} Bc4 {[%emt 00:03:26]} 50. Ne3 {[%clk
00:12:42]} Be2 {[%clk 00:14:59]} {[%emt 00:01:26]} 51. f4 {[%clk 00:12:19]}
{[%emt 00:00:53]} Bg4 {[%clk 00:12:28]} {[%emt 00:03:02]} 52. Nd5 {[%clk
00:09:04]} {[%emt 00:03:45]} Kd7 {[%clk 00:12:13]} {[%emt 00:00:45]} 53. Nc3
{[%clk 00:02:10]} {[%emt 00:07:24]} Kc6 {[%clk 00:12:38]} {[%emt 00:00:05]} 54.
Nd5 {[%clk 00:01:13]} {[%emt 00:01:27]} Be6 {[%clk 00:12:41]} {[%emt 00:00:28]}
55. Nc3 {[%clk 00:01:32]} {[%emt 00:00:11]} Bb3 {[%clk 00:12:41]} {[%emt
00:00:30]} 56. g3 {[%clk 00:01:54]} {[%emt 00:00:08]} Be6 {[%clk 00:12:30]}
{[%emt 00:00:41]} 57. Ne4 {[%clk 00:02:13]} {[%emt 00:00:11]} Bb3 {[%clk
00:10:56]} {[%emt 00:02:03]} 58. Nc3 {[%clk 00:02:07]} {[%emt 00:00:35]} Bc2
{[%clk 00:10:08]} {[%emt 00:01:19]} 59. Nd5 {[%clk 00:02:26]} {[%emt 00:00:11]}
Bd1 {[%clk 00:10:02]} {[%emt 00:00:36]} 60. Ne7+ {[%clk 00:01:09]} {[%emt
00:01:48]} Kd7 {[%clk 00:10:06]} {[%emt 00:00:25]} 61. Nd5 {[%clk 00:01:32]}
{[%emt 00:00:07]} Bf3 {[%clk 00:10:17]} {[%emt 00:00:19]} 62. Nc3 {[%clk
00:01:18]} {[%emt 00:00:44]} Bc6 {[%clk 00:10:30]} {[%emt 00:00:16]} 63. Nd1
{[%clk 00:01:42]} {[%emt 00:00:07]} Kc7 {[%clk 00:09:42]} {[%emt 00:01:18]} 64.
Nc3 {[%clk 00:01:01]} {[%emt 00:01:11]} Kb6 {[%clk 00:08:51]} {[%emt 00:01:21]}
65. Na2 {[%clk 00:01:08]} {[%emt 00:00:23]} Ka5 {[%clk 00:06:43]} {[%emt
00:02:37]} 66. Nc3 {[%clk 00:01:36]} {[%emt 00:00:03]} Bb7 {[%clk 00:06:39]}
{[%emt 00:00:34]} 67. Ke3 {[%clk 00:01:55]} {[%emt 00:00:07]} Ba8 {[%clk
00:06:48]} {[%emt 00:00:24]} 68. Kd4 {[%clk 00:02:20]} {[%emt 00:00:05]} Bc6
{[%clk 00:07:14]} {[%emt 00:00:05]} 69. Ke3 {[%clk 00:02:41]} {[%emt 00:00:08]}
1/2-1/2

[Event "Berliner Meisterschaft 2023"]
[Site "Berlin"]
[Date "2023.04.15"]
[Round "8.3"]
[White "Glantz, Robert"]
[Black "Schmidek, Emil"]
[Result "1/2-1/2"]
[TimeControl "90 minutes / 40 moves + 30 minutes + 30 seconds"]
[WhiteTitle "FM"]
[BlackTitle "IM"]
[WhiteFideId "24629596"]
[BlackFideId "12908150"]
[WhiteElo "2360"]
[BlackElo "2433"]

1. e4 {[%clk 01:28:54]} {[%emt 00:01:57]} c6 {[%clk 01:30:30]} {[%emt
00:00:39]} 2. Nc3 {[%clk 01:28:00]} {[%emt 00:01:23]} d5 {[%clk 01:30:55]}
{[%emt 00:00:06]} 3. Nf3 {[%clk 01:28:12]} {[%emt 00:00:17]} Bg4 {[%clk
01:31:21]} {[%emt 00:00:04]} 4. h3 {[%clk 01:27:59]} {[%emt 00:00:43]} Bxf3
{[%clk 01:31:46]} {[%emt 00:00:06]} 5. Qxf3 {[%clk 01:28:23]} {[%emt 00:00:05]}
e6 {[%clk 01:32:10]} {[%emt 00:00:06]} 6. Be2 {[%clk 01:27:56]} {[%emt
00:00:56]} Bc5 {[%clk 01:32:04]} {[%emt 00:00:37]} 7. O-O {[%clk 01:26:09]}
{[%emt 00:02:15]} Ne7 {[%clk 01:32:17]} {[%emt 00:00:17]} 8. Na4 {[%clk
01:16:42]} {[%emt 00:09:58]} Bd6 {[%clk 01:32:37]} {[%emt 00:00:10]} 9. d4
{[%clk 01:16:19]} {[%emt 00:00:52]} dxe4 {[%clk 01:33:00]} {[%emt 00:00:08]} 10.
Qxe4 {[%clk 01:16:42]} {[%emt 00:00:07]} Nd7 {[%clk 01:33:22]} {[%emt
00:00:07]} 11. Rd1 {[%clk 01:07:47]} {[%emt 00:09:25]} Nf6 {[%clk 01:33:22]}
{[%emt 00:00:31]} 12. Qf3 {[%clk 01:02:58]} {[%emt 00:05:18]} Qa5 {[%clk
01:32:58]} {[%emt 00:00:55]} 13. Nc3 {[%clk 00:54:52]} {[%emt 00:08:35]} Qf5
{[%clk 01:31:43]} {[%emt 00:01:45]} 14. Qxf5 {[%clk 00:46:17]} {[%emt
00:09:04]} Nxf5 {[%clk 01:32:04]} {[%emt 00:00:10]} 15. Bg5 {[%clk 00:38:28]}
{[%emt 00:08:19]} Be7 {[%clk 01:27:25]} {[%emt 00:05:10]} 16. Bxf6 {[%clk
00:33:04]} {[%emt 00:05:54]} Bxf6 {[%clk 01:24:49]} {[%emt 00:03:06]} 17. Ne4
{[%clk 00:33:28]} {[%emt 00:00:05]} Be7 {[%clk 01:24:58]} {[%emt 00:00:22]} 18.
Rd3 {[%clk 00:32:03]} {[%emt 00:01:55]} O-O {[%clk 01:16:41]} {[%emt 00:08:47]}
19. Rad1 {[%clk 00:30:02]} {[%emt 00:02:31]} Rfd8 {[%clk 01:16:07]} {[%emt
00:01:04]} 20. g3 {[%clk 00:24:14]} {[%emt 00:06:18]} b6 {[%clk 00:56:59]}
{[%emt 00:19:38]} 1/2-1/2

[Event "Berliner Meisterschaft 2023"]
[Site "Berlin"]
[Date "2023.04.15"]
[Round "8.4"]
[White "Lagunow, Raphael"]
[Black "von Herman, Ulf"]
[Result "1/2-1/2"]
[TimeControl "90 minutes / 40 moves + 30 minutes + 30 seconds"]
[WhiteTitle "IM"]
[BlackTitle "IM"]
[WhiteFideId "246552644"]
[BlackFideId "4608500"]
[WhiteElo "2410"]
[BlackElo "2332"]

1. e4 {[%clk 01:20:18]} {[%emt 00:10:34]} c6 {[%clk 01:30:53]} {[%emt
00:00:11]} 2. Nc3 {[%clk 01:20:25]} {[%emt 00:00:27]} d5 {[%clk 01:30:27]}
{[%emt 00:00:55]} 3. Nf3 {[%clk 01:20:45]} {[%emt 00:00:10]} g6 {[%clk
01:26:24]} {[%emt 00:04:33]} 4. d4 {[%clk 01:13:04]} {[%emt 00:08:11]} Bg7
{[%clk 01:24:05]} {[%emt 00:02:48]} 5. h3 {[%clk 01:10:03]} {[%emt 00:03:32]}
dxe4 {[%clk 01:23:17]} {[%emt 00:01:18]} 6. Nxe4 {[%clk 01:10:26]} {[%emt
00:00:07]} Nf6 {[%clk 01:21:05]} {[%emt 00:02:42]} 7. Nc5 {[%clk 00:46:20]}
{[%emt 00:24:37]} O-O {[%clk 01:19:24]} {[%emt 00:02:10]} 8. Bc4 {[%clk
00:39:12]} {[%emt 00:07:38]} Nbd7 {[%clk 01:13:41]} {[%emt 00:06:13]} 9. Nxd7
{[%clk 00:38:39]} {[%emt 00:01:04]} Nxd7 {[%clk 01:13:52]} {[%emt 00:00:19]} 10.
O-O {[%clk 00:38:59]} {[%emt 00:00:10]} c5 {[%clk 01:04:07]} {[%emt 00:10:14]}
11. c3 {[%clk 00:36:33]} {[%emt 00:02:56]} cxd4 {[%clk 01:02:57]} {[%emt
00:01:40]} 12. Nxd4 {[%clk 00:36:57]} {[%emt 00:00:06]} Qc7 {[%clk 00:58:31]}
{[%emt 00:04:56]} 13. Qe2 {[%clk 00:35:17]} {[%emt 00:02:11]} a6 {[%clk
00:56:24]} {[%emt 00:02:37]} 14. a4 {[%clk 00:28:40]} {[%emt 00:07:07]} Nc5
{[%clk 00:45:04]} {[%emt 00:11:50]} 15. a5 {[%clk 00:23:19]} {[%emt 00:05:52]}
e5 {[%clk 00:37:36]} {[%emt 00:07:57]} 16. Nf3 {[%clk 00:21:36]} {[%emt
00:02:13]} Be6 {[%clk 00:33:29]} {[%emt 00:04:37]} 17. Bxe6 {[%clk 00:14:59]}
{[%emt 00:07:07]} Nxe6 {[%clk 00:33:29]} {[%emt 00:00:29]} 18. Re1 {[%clk
00:15:17]} {[%emt 00:00:12]} Nc5 {[%clk 00:23:03]} {[%emt 00:10:57]} 19. Qc4
{[%clk 00:12:46]} {[%emt 00:03:02]} Rac8 {[%clk 00:19:54]} {[%emt 00:03:38]} 20.
Be3 {[%clk 00:12:54]} {[%emt 00:00:21]} Rfe8 {[%clk 00:16:58]} {[%emt
00:03:27]} 21. Rad1 {[%clk 00:09:21]} {[%emt 00:04:04]} e4 {[%emt 00:08:57]} 22.
Ng5 {[%clk 00:04:37]} Nd3 {[%clk 00:11:28]} {[%emt 00:02:46]} 23. Qxc7 {[%clk
00:05:03]} {[%emt 00:00:04]} Rxc7 {[%clk 00:11:51]} {[%emt 00:00:06]} 24. Bb6
{[%clk 00:04:29]} {[%emt 00:01:05]} Rce7 {[%clk 00:07:51]} {[%emt 00:04:30]} 25.
Rxe4 {[%clk 00:03:47]} {[%emt 00:01:12]} Rxe4 {[%clk 00:08:10]} {[%emt
00:00:11]} 26. Nxe4 {[%clk 00:04:03]} {[%emt 00:00:14]} Nxb2 {[%clk 00:07:51]}
{[%emt 00:00:49]} 27. Rd7 {[%clk 00:02:58]} {[%emt 00:01:35]} Nc4 {[%clk
00:06:40]} {[%emt 00:01:41]} 28. f3 {[%clk 00:01:51]} {[%emt 00:01:37]} f5
{[%clk 00:03:57]} {[%emt 00:03:13]} 29. Nc5 {[%clk 00:02:17]} {[%emt 00:00:04]}
Bxc3 {[%clk 00:04:20]} {[%emt 00:00:07]} 30. Nxb7 {[%clk 00:02:39]} {[%emt
00:00:08]} Re1+ {[%clk 00:03:17]} {[%emt 00:01:33]} 31. Kf2 {[%clk 00:02:34]}
{[%emt 00:00:35]} Ra1 {[%clk 00:02:20]} {[%emt 00:01:27]} 32. Rd8+ {[%clk
00:00:57]} {[%emt 00:02:08]} Kf7 {[%clk 00:02:10]} {[%emt 00:00:41]} 33. Rd7+
{[%clk 00:00:47]} {[%emt 00:00:39]} Kg8 {[%clk 00:02:34]} {[%emt 00:00:05]} 34.
Rd8+ {[%clk 00:00:41]} {[%emt 00:00:36]} Kf7 {[%clk 00:02:59]} {[%emt
00:00:06]} 35. Rd7+ {[%clk 00:00:32]} {[%emt 00:00:39]} Kg8 {[%clk 00:03:06]}
{[%emt 00:00:22]} 36. Rd8+ {[%clk 00:00:36]} {[%emt 00:00:26]} 1/2-1/2

[Event "Berliner Meisterschaft 2023"]
[Site "Berlin"]
[Date "2023.04.15"]
[Round "8.5"]
[White "Poltorak, Sebastian"]
[Black "Lagunow, Alexander"]
[Result "1/2-1/2"]
[TimeControl "90 minutes / 40 moves + 30 minutes + 30 seconds"]
[WhiteTitle "FM"]
[BlackTitle "IM"]
[WhiteFideId "1199498"]
[BlackFideId "4616049"]
[WhiteElo "2368"]
[BlackElo "2341"]

1. e4 {[%clk 01:30:58]} {[%emt 00:00:02]} c5 {[%clk 01:30:54]} {[%emt
00:00:06]} 2. Nc3 {[%clk 01:31:22]} {[%emt 00:00:05]} Nc6 {[%clk 01:31:14]}
{[%emt 00:00:10]} 3. Bb5 {[%clk 01:31:46]} {[%emt 00:00:06]} Nd4 {[%clk
01:31:34]} {[%emt 00:00:10]} 4. Nf3 {[%clk 01:32:10]} {[%emt 00:00:07]} a6
{[%clk 01:31:20]} {[%emt 00:00:44]} 5. Bd3 {[%clk 01:32:33]} {[%emt 00:00:06]}
g6 {[%clk 01:31:12]} {[%emt 00:00:38]} 6. Nxd4 {[%clk 01:32:52]} {[%emt
00:00:11]} cxd4 {[%clk 01:31:34]} {[%emt 00:00:08]} 7. Ne2 {[%clk 01:33:16]}
{[%emt 00:00:06]} d5 {[%clk 01:31:12]} {[%emt 00:00:51]} 8. e5 {[%clk
01:27:16]} {[%emt 00:06:29]} Bg7 {[%clk 01:30:38]} {[%emt 00:01:05]} 9. f4
{[%clk 01:27:29]} {[%emt 00:00:17]} f6 {[%clk 01:26:14]} {[%emt 00:04:55]} 10.
exf6 {[%clk 01:26:47]} {[%emt 00:01:11]} Nxf6 {[%clk 01:10:33]} {[%emt
00:16:11]} 11. O-O {[%clk 01:21:23]} {[%emt 00:05:53]} O-O {[%clk 01:06:29]}
{[%emt 00:04:35]} 12. b3 {[%clk 01:15:02]} {[%emt 00:06:51]} Ne4 {[%clk
00:59:48]} {[%emt 00:07:11]} 13. Ba3 {[%clk 01:02:06]} {[%emt 00:13:26]} Rf7
{[%clk 00:58:28]} {[%emt 00:01:50]} 14. Ng3 {[%clk 01:01:39]} {[%emt 00:00:57]}
Qa5 {[%clk 00:56:09]} {[%emt 00:02:50]} 15. Qc1 {[%clk 01:01:03]} {[%emt
00:01:06]} Bf5 {[%clk 00:45:33]} {[%emt 00:11:06]} 16. Re1 {[%clk 00:51:26]}
{[%emt 00:10:07]} Qb6 {[%clk 00:32:33]} {[%emt 00:13:30]} 17. Qd1 {[%clk
00:38:11]} {[%emt 00:13:44]} Rc8 {[%clk 00:31:59]} {[%emt 00:01:05]} 18. Nxf5
{[%clk 00:31:42]} {[%emt 00:06:59]} gxf5 {[%clk 00:31:59]} {[%emt 00:00:29]} 19.
Bb2 {[%clk 00:26:07]} {[%emt 00:06:06]} Qd6 {[%clk 00:22:19]} {[%emt 00:10:10]}
20. Rf1 {[%clk 00:22:35]} {[%emt 00:04:02]} e5 {[%clk 00:19:23]} {[%emt
00:03:26]} 21. Be2 {[%clk 00:20:08]} {[%emt 00:02:56]} exf4 {[%clk 00:13:59]}
{[%emt 00:05:54]} 22. d3 {[%clk 00:20:19]} {[%emt 00:00:20]} Ng5 {[%clk
00:13:50]} {[%emt 00:00:38]} 23. Bh5 {[%clk 00:16:46]} {[%emt 00:04:03]} Rfc7
{[%clk 00:13:20]} {[%emt 00:01:01]} 24. Rf2 {[%clk 00:16:31]} {[%emt 00:00:45]}
Rc6 {[%clk 00:11:25]} {[%emt 00:02:25]} 25. Rc1 {[%clk 00:14:46]} {[%emt
00:02:14]} Be5 {[%clk 00:10:39]} {[%emt 00:01:16]} 26. h4 {[%clk 00:14:53]}
{[%emt 00:00:24]} Ne6 {[%clk 00:07:01]} {[%emt 00:04:09]} 27. Qe2 {[%clk
00:09:36]} {[%emt 00:05:46]} Bf6 {[%clk 00:06:57]} {[%emt 00:00:34]} 28. g3
{[%clk 00:07:22]} {[%emt 00:02:44]} fxg3 {[%clk 00:04:21]} {[%emt 00:03:06]} 29.
Rxf5 {[%clk 00:07:46]} {[%emt 00:00:06]} Ng7 {[%clk 00:04:49]} {[%emt
00:00:02]} 30. Qg4 {[%clk 00:06:33]} {[%emt 00:01:43]} Rxc2 {[%clk 00:03:40]}
{[%emt 00:01:40]} 31. Rff1 {[%clk 00:04:14]} {[%emt 00:02:48]} Rxc1 {[%clk
00:03:15]} {[%emt 00:00:54]} 32. Bxc1 {[%clk 00:04:40]} {[%emt 00:00:04]} Rf8
{[%clk 00:03:18]} {[%emt 00:00:27]} 33. Bf4 {[%clk 00:02:04]} {[%emt 00:03:06]}
Be5 {[%clk 00:03:41]} {[%emt 00:00:07]} 34. Bxe5 {[%clk 00:01:58]} {[%emt
00:00:36]} Qxe5 {[%clk 00:04:09]} {[%emt 00:00:02]} 35. Rxf8+ {[%clk 00:02:03]}
{[%emt 00:00:25]} Kxf8 {[%clk 00:04:35]} {[%emt 00:00:03]} 36. Qc8+ {[%clk
00:02:26]} {[%emt 00:00:07]} Ke7 {[%clk 00:05:01]} {[%emt 00:00:04]} 37. Qxb7+
{[%clk 00:02:44]} {[%emt 00:00:12]} Kd8 {[%clk 00:05:13]} {[%emt 00:00:18]} 38.
Qb6+ {[%clk 00:02:05]} {[%emt 00:01:09]} Ke7 {[%clk 00:05:25]} {[%emt
00:00:18]} 39. Qb7+ {[%clk 00:02:17]} {[%emt 00:00:18]} Kd8 {[%clk 00:05:48]}
{[%emt 00:00:07]} 40. Qb6+ {[%clk 00:02:10]} {[%emt 00:00:37]} Ke7 {[%clk
00:06:09]} {[%emt 00:00:09]} 1/2-1/2